fUST/lending_fUST_20250516
["ID","MTS","AMOUNT","RATE_DAILY","PERIOD"]
[361197483,1747333856594,-450.0,0.00014383,2]
[361197484,1747333856607,-450.0,0.00014383,2]
[361197485,1747333856620,-444.39,0.00014383,2]
[361197486,1747333856635,-450.0,0.00014383,2]
[361197487,1747333856651,-312.31,0.00014383,2]
[361197488,1747333856665,-450.0,0.00014383,2]
[361197489,1747333856679,-528.86,0.00014383,2]
[361197490,1747333856694,-450.0,0.00014383,2]
[361197491,1747333856710,-450.0,0.00014383,2]
[361197492,1747333856725,-450.0,0.00014383,2]
[361197493,1747333856740,-2184.37,0.00014383,2]
[361197494,1747333856754,-450.0,0.00014383,2]
[361197495,1747333856769,-450.0,0.00014383,2]
[361197496,1747333856785,-450.0,0.00014383,2]
[361197497,1747333856800,-516.89,0.00014383,2]
[361197498,1747333856816,-450.0,0.00014383,2]
[361197499,1747333856828,-450.0,0.00014383,2]
[361197500,1747333856946,-284.24,0.00014383,2]
[361197501,1747333856964,-450.0,0.00014383,2]
[361197502,1747333856974,-450.0,0.00014383,2]
[361197503,1747333856986,-450.0,0.00014383,2]
[361197504,1747333856995,-524.77,0.00014383,2]
[361197505,1747333857005,-450.0,0.00014383,2]
[361197506,1747333857014,-151.0,0.00014383,2]
[361197507,1747333857025,-450.0,0.00014383,2]
[361197508,1747333857034,-450.0,0.00014383,2]
[361197509,1747333857043,-450.0,0.00014383,2]
[361197510,1747333857055,-450.0,0.00014383,2]
[361197511,1747333857066,-450.0,0.00014383,2]
[361197512,1747333857076,-450.0,0.00014383,2]
[361197513,1747333857086,-1296.06,0.00014383,2]
[361197514,1747333857096,-450.0,0.00014383,2]
[361197515,1747333857107,-450.0,0.00014383,2]
[361197516,1747333857116,-450.0,0.00014383,2]
[361197517,1747333857127,-450.0,0.00014383,2]
[361197518,1747333857137,-450.0,0.00014383,2]
[361197519,1747333857148,-450.0,0.00014383,2]
[361197520,1747333857158,-450.0,0.00014383,2]
[361197521,1747333857169,-393.97,0.00014383,2]
[361197522,1747333857178,-450.0,0.00014383,2]
[361197523,1747333857188,-2073.17,0.00014383,2]
[361197524,1747333857198,-450.0,0.00014383,2]
[361197525,1747333857207,-497.64,0.00014383,2]
[361197526,1747333857218,-184.37982846,0.00014383,2]
[361197527,1747333857228,-980.49,0.00014383,2]
[361197528,1747333857238,-1375.65,0.00014383,2]
[361197529,1747333857247,-151.0,0.000144,2]
[361197530,1747333857257,-151.0,0.000145,2]
[361197531,1747333857266,-151.0,0.0001452,2]
[361197532,1747333857275,-151.0,0.0001452,2]
[361197533,1747333857285,-450.0,0.0001452,2]
[361197534,1747333857294,-450.0,0.0001452,2]
[361197535,1747333857303,-450.0,0.0001452,2]
[361197536,1747333857312,-450.0,0.0001452,2]
[361197537,1747333857321,-450.0,0.0001452,2]
[361197538,1747333857330,-406.73,0.0001452,2]
[361197539,1747333857340,-360.92,0.0001452,2]
[361197540,1747333857350,-153.9,0.0001452,2]
[361197541,1747333857359,-507.6,0.0001452,2]
[361197542,1747333857368,-450.0,0.0001452,2]
[361197543,1747333857377,-585.11,0.0001452,2]
[361197544,1747333857386,-450.0,0.0001452,2]
[361197545,1747333857395,-450.0,0.0001452,2]
[361197546,1747333857404,-151.0,0.0001452,2]
[361197547,1747333857414,-450.0,0.0001452,2]
[361197548,1747333857424,-576.28,0.0001452,2]
[361197549,1747333857434,-772.22,0.0001452,2]
[361197550,1747333857443,-151.0,0.0001452,2]
[361197551,1747333857453,-712.99,0.0001452,2]
[361197552,1747333857462,-450.0,0.0001452,2]
[361197553,1747333857471,-450.0,0.0001452,2]
[361197554,1747333857481,-450.0,0.0001452,2]
[361197555,1747333857491,-450.0,0.0001452,2]
[361197556,1747333857500,-450.0,0.0001452,2]
[361197557,1747333857510,-310.01,0.0001452,2]
[361197558,1747333857521,-450.0,0.0001452,2]
[361197559,1747333857532,-450.0,0.0001452,2]
[361197560,1747333857541,-450.0,0.0001452,2]
[361197561,1747333857551,-450.0,0.0001452,2]
[361197562,1747333857560,-151.0,0.0001452,2]
[361197563,1747333857570,-450.0,0.0001452,2]
[361197564,1747333857579,-450.0,0.0001452,2]
[361197565,1747333857588,-450.0,0.0001452,2]
[361197566,1747333857597,-450.0,0.0001452,2]
[361197567,1747333857607,-450.0,0.0001452,2]
[361197568,1747333857616,-450.0,0.0001452,2]
[361197569,1747333857625,-450.0,0.0001452,2]
[361197570,1747333857635,-450.0,0.0001452,2]
[361197571,1747333857644,-450.0,0.0001452,2]
[361197572,1747333857653,-510.66,0.0001452,2]
[361197573,1747333857662,-519.940163,0.0001452,2]
[361197574,1747333857672,-519.940163,0.0001452,2]
[361197575,1747333857681,-450.0,0.0001452,2]
[361197576,1747333857691,-450.0,0.0001452,2]
[361197577,1747333857702,-450.0,0.0001452,2]
[361197578,1747333857712,-1316.69,0.0001452,2]
[361197579,1747333857722,-450.0,0.0001452,2]
[361197580,1747333857732,-450.0,0.0001452,2]
[361197581,1747333857742,-420.5,0.0001452,2]
[361197582,1747333857753,-450.0,0.0001452,2]
[361197583,1747333857763,-450.0,0.0001452,2]
[361197584,1747333857773,-375.16,0.0001452,2]
[361197585,1747333857782,-450.0,0.0001452,2]
[361197586,1747333857791,-2184.37,0.0001452,2]
[361197587,1747333857800,-404.64,0.0001452,2]
[361197588,1747333857810,-335.07,0.0001452,2]
[361197589,1747333857819,-450.0,0.0001452,2]
[361197590,1747333857829,-516.89,0.0001452,2]
[361197591,1747333857839,-576.82,0.0001452,2]
[361197592,1747333857848,-450.0,0.0001452,2]
[361197593,1747333857858,-450.0,0.0001452,2]
[361197594,1747333857868,-450.0,0.0001452,2]
[361197595,1747333857877,-326.2,0.0001452,2]
[361197596,1747333857887,-450.0,0.0001452,2]
[361197597,1747333857896,-450.0,0.0001452,2]
[361197598,1747333857906,-450.0,0.0001452,2]
[361197599,1747333857915,-450.0,0.0001452,2]
[361197600,1747333857924,-450.0,0.0001452,2]
[361197601,1747333857934,-450.0,0.0001452,2]
[361197602,1747333857943,-450.0,0.0001452,2]
[361197603,1747333857952,-1296.06,0.0001452,2]
[361197604,1747333857962,-450.0,0.0001452,2]
[361197605,1747333857971,-450.0,0.0001452,2]
[361197606,1747333857983,-450.0,0.0001452,2]
[361197607,1747333857999,-450.0,0.0001452,2]
[361197608,1747333858008,-450.0,0.0001452,2]
[361197609,1747333858018,-450.0,0.0001452,2]
[361197610,1747333858028,-450.0,0.0001452,2]
[361197611,1747333858038,-450.0,0.0001452,2]
[361197612,1747333858047,-2073.17,0.0001452,2]
[361197613,1747333858057,-450.0,0.0001452,2]
[361197614,1747333858068,-497.64,0.0001452,2]
[361197615,1747333858078,-980.49,0.0001452,2]
[361197616,1747333858088,-1375.65,0.0001452,2]
[361197617,1747333858097,-151.0,0.00014574,2]
[361197618,1747333858108,-162.846974,0.00014574,2]
[361197619,1747333858117,-1353.13167,0.00014574,2]
[361197620,1747333858127,-1353.13167,0.00014574,2]
[361197621,1747333858136,-5000.0,0.00014574,2]
[361197622,1747333858146,-151.0,0.00014657,2]
[361197623,1747333858156,-151.0,0.00014657,2]
[361197624,1747333858165,-197.842563,0.00014657,2]
[361197625,1747333858174,-151.0,0.00014657,2]
[361197626,1747333858184,-450.0,0.00014657,2]
[361197627,1747333858194,-450.0,0.00014657,2]
[361197628,1747333858204,-161.47,0.00014657,2]
[361197629,1747333858213,-215.23,0.00014657,2]
[361197630,1747333858223,-245.36,0.00014657,2]
[361197631,1747333858233,-188.95,0.00014657,2]
[361197632,1747333858242,-151.0,0.00014657,2]
[361197633,1747333858252,-450.0,0.00014657,2]
[361197634,1747333858261,-450.0,0.00014657,2]
[361197635,1747333858272,-450.0,0.00014657,2]
[361197636,1747333858282,-151.0,0.00014657,2]
[361197637,1747333858291,-576.28,0.00014657,2]
[361197638,1747333858301,-772.22,0.00014657,2]
[361197639,1747333858311,-712.99,0.00014657,2]
[361197640,1747333858320,-450.0,0.00014657,2]
[361197641,1747333858330,-450.0,0.00014657,2]
[361197642,1747333858339,-450.0,0.00014657,2]
[361197643,1747333858348,-450.0,0.00014657,2]
[361197644,1747333858358,-294.93,0.00014657,2]
[361197645,1747333858367,-450.0,0.00014657,2]
[361197646,1747333858377,-450.0,0.00014657,2]
[361197647,1747333858387,-450.0,0.00014657,2]
[361197648,1747333858397,-450.0,0.00014657,2]
[361197649,1747333858406,-450.0,0.00014657,2]
[361197650,1747333858415,-450.0,0.00014657,2]
[361197651,1747333858425,-246.34,0.00014657,2]
[361197652,1747333858434,-450.0,0.00014657,2]
[361197653,1747333858444,-450.0,0.00014657,2]
[361197654,1747333858454,-450.0,0.00014657,2]
[361197655,1747333858464,-450.0,0.00014657,2]
[361197656,1747333858473,-450.0,0.00014657,2]
[361197657,1747333858482,-450.0,0.00014657,2]
[361197658,1747333858492,-510.66,0.00014657,2]
[361197659,1747333858502,-450.0,0.00014657,2]
[361197660,1747333858511,-450.0,0.00014657,2]
[361197661,1747333858522,-450.0,0.00014657,2]
[361197662,1747333858531,-1316.69,0.00014657,2]
[361197663,1747333858541,-450.0,0.00014657,2]
[361197664,1747333858551,-450.0,0.00014657,2]
[361197665,1747333858561,-450.0,0.00014657,2]
[361197666,1747333858572,-450.0,0.00014657,2]
[361197667,1747333858582,-450.0,0.00014657,2]
[361197668,1747333858592,-2184.37,0.00014657,2]
[361197669,1747333858602,-450.0,0.00014657,2]
[361197670,1747333858612,-516.89,0.00014657,2]
[361197671,1747333858622,-258.35,0.00014657,2]
[361197672,1747333858632,-359.83,0.00014657,2]
[361197673,1747333858643,-450.0,0.00014657,2]
[361197674,1747333858653,-450.0,0.00014657,2]
[361197675,1747333858663,-450.0,0.00014657,2]
[361197676,1747333858673,-450.0,0.00014657,2]
[361197677,1747333858684,-450.0,0.00014657,2]
[361197678,1747333858789,-450.0,0.00014657,2]
[361197679,1747333858800,-450.0,0.00014657,2]
[361197680,1747333858809,-450.0,0.00014657,2]
[361197681,1747333858820,-1296.06,0.00014657,2]
[361197682,1747333858830,-450.0,0.00014657,2]
[361197683,1747333858839,-599.16,0.00014657,2]
[361197684,1747333858849,-450.0,0.00014657,2]
[361197685,1747333858859,-450.0,0.00014657,2]
[361197686,1747333858869,-257.57,0.00014657,2]
[361197687,1747333858879,-223.87,0.00014657,2]
[361197688,1747333858889,-450.0,0.00014657,2]
[361197689,1747333858899,-450.0,0.00014657,2]
[361197690,1747333858909,-2073.17,0.00014657,2]
[361197691,1747333858919,-450.0,0.00014657,2]
[361197692,1747333858929,-497.64,0.00014657,2]
[361197693,1747333858938,-980.49,0.00014657,2]
[361197694,1747333858949,-1375.65,0.00014657,2]
[361197695,1747333858959,-151.0,0.00014764,2]
[361197696,1747333858969,-151.0,0.00014764,2]
[361197697,1747333858978,-720.972963,0.00014764,2]
[361197698,1747333858991,-500.0,0.00014768,2]
[361197699,1747333859001,-214.75058005,0.00014777,2]
[361197700,1747333859010,-1000.0,0.00014777,2]
[361197701,1747333859021,-1000.0,0.00014777,2]
[361197702,1747333859032,-500.0,0.00014777,2]
[361197703,1747333859042,-450.0,0.00014794,2]
[361197704,1747333859051,-450.0,0.00014794,2]
[361197705,1747333859061,-450.0,0.00014794,2]
[361197706,1747333859071,-450.0,0.00014794,2]
[361197707,1747333859080,-450.0,0.00014794,2]
[361197708,1747333859089,-576.28,0.00014794,2]
[361197709,1747333859100,-772.22,0.00014794,2]
[361197710,1747333859110,-712.99,0.00014794,2]
[361197711,1747333859120,-450.0,0.00014794,2]
[361197712,1747333859129,-450.0,0.00014794,2]
[361197713,1747333859139,-452.93825589,0.00014794,2]
[361197714,1747333859149,-450.0,0.00014794,2]
[361197715,1747333859158,-450.0,0.00014794,2]
[361197716,1747333859167,-450.0,0.00014794,2]
[361197717,1747333859178,-450.0,0.00014794,2]
[361197718,1747333859187,-450.0,0.00014794,2]
[361197719,1747333859197,-450.0,0.00014794,2]
[361197720,1747333859206,-450.0,0.00014794,2]
[361197721,1747333859216,-209.7066422,0.00014794,2]
[361197722,1747333859793,-5000.0,0.00013534,2]
[361197723,1747333859803,-500.0,0.00013671,2]
[361197724,1747333859814,-500.0,0.00013671,2]
[361197725,1747333859823,-500.0,0.00013671,2]
[361197726,1747333859832,-500.0,0.00013671,2]
[361197727,1747333859842,-500.0,0.00013671,2]
[361197728,1747333859851,-642.63624607,0.00013671,2]
[361197729,1747333859861,-500.0,0.00013671,2]
[361197730,1747333859871,-500.0,0.00013671,2]
[361197731,1747333859881,-500.0,0.00013671,2]
[361197732,1747333859890,-500.0,0.00013671,2]
[361197733,1747333859900,-500.0,0.00013671,2]
[361197734,1747333859909,-500.0,0.00013671,2]
[361197735,1747333859919,-500.0,0.00013671,2]
[361197736,1747333859928,-500.0,0.00013671,2]
[361197737,1747333859938,-500.0,0.00013671,2]
[361197738,1747333859947,-500.0,0.00013671,2]
[361197739,1747333859957,-500.0,0.00013671,2]
[361197740,1747333859967,-500.0,0.00013671,2]
[361197741,1747333859977,-470.01799636,0.00013698,2]
[361197742,1747333859991,-400.0,0.00013698,2]
[361197743,1747333860001,-151.0,0.00013698,2]
[361197744,1747333860012,-151.0,0.00013698,2]
[361197745,1747333860023,-151.0,0.00013698,2]
[361197746,1747333860033,-450.0,0.00013698,2]
[361197747,1747333860043,-450.0,0.00013698,2]
[361197748,1747333860052,-450.0,0.00013698,2]
[361197749,1747333860063,-500.0,0.00013699,2]
[361197750,1747333860073,-500.0,0.00013699,2]
[361197751,1747333860082,-500.0,0.00013699,2]
[361197752,1747333860093,-500.0,0.00013699,2]
[361197753,1747333860103,-151.0,0.00013835,2]
[361197754,1747333860113,-450.0,0.00013835,2]
[361197755,1747333860122,-151.0,0.00013835,2]
[361197756,1747333860132,-151.0,0.00013835,2]
[361197757,1747333860142,-350.0,0.00013835,2]
[361197758,1747333860151,-450.0,0.00013835,2]
[361197759,1747333860161,-151.0,0.00013835,2]
[361197760,1747333860170,-450.0,0.00013972,2]
[361197761,1747333860180,-150.96,0.00013972,2]
[361197762,1747333860191,-462.54,0.00013972,2]
[361197763,1747333860300,-577.06,0.00014109,2]
[361197764,1747333860310,-57.5133578,0.00014794,2]
[361197765,1747333860319,-450.0,0.00014794,2]
[361197766,1747333860329,-450.0,0.00014794,2]
[361197767,1747333860339,-450.0,0.00014794,2]
[361197768,1747333860348,-450.0,0.00014794,2]
[361197769,1747333860358,-450.0,0.00014794,2]
[361197770,1747333860367,-510.66,0.00014794,2]
[361197771,1747333860376,-519.940163,0.00014794,2]
[361197772,1747333860385,-519.940163,0.00014794,2]
[361197773,1747333860395,-450.0,0.00014794,2]
[361197774,1747333860404,-450.0,0.00014794,2]
[361197775,1747333860413,-289.1,0.00014794,2]
[361197776,1747333860423,-1316.69,0.00014794,2]
[361197777,1747333860432,-450.0,0.00014794,2]
[361197778,1747333860442,-450.0,0.00014794,2]
[361197779,1747333860451,-134.5132327,0.00014794,2]
[361197780,1747333860484,-315.4867673,0.00014794,2]
[361197781,1747333860494,-450.0,0.00014794,2]
[361197782,1747333860503,-450.0,0.00014794,2]
[361197783,1747333860512,-2184.37,0.00014794,2]
[361197784,1747333860524,-450.0,0.00014794,2]
[361197785,1747333860534,-516.89,0.00014794,2]
[361197786,1747333860544,-450.0,0.00014794,2]
[361197787,1747333860554,-450.0,0.00014794,2]
[361197788,1747333860563,-355.32,0.00014794,2]
[361197789,1747333860571,-450.0,0.00014794,2]
[361197790,1747333860582,-450.0,0.00014794,2]
[361197791,1747333860591,-184.66,0.00014794,2]
[361197792,1747333860601,-540.38,0.00014794,2]
[361197793,1747333860611,-450.0,0.00014794,2]
[361197794,1747333860620,-1296.06,0.00014794,2]
[361197795,1747333860630,-450.0,0.00014794,2]
[361197796,1747333860639,-281.24,0.00014794,2]
[361197797,1747333860648,-335.67,0.00014794,2]
[361197798,1747333860658,-450.0,0.00014794,2]
[361197799,1747333860667,-450.0,0.00014794,2]
[361197800,1747333860678,-2073.17,0.00014794,2]
[361197801,1747333860688,-450.0,0.00014794,2]
[361197802,1747333860697,-497.64,0.00014794,2]
[361197803,1747333860707,-980.49,0.00014794,2]
[361197804,1747333860923,-1375.65,0.00014794,2]
[361197805,1747333860933,-7167.35542556,0.0001485,2]
[361197806,1747333861091,-13.0260294,0.00013698,2]
[361197807,1747333861165,-436.9739706,0.00013698,2]
[361197808,1747333861175,-450.0,0.00013698,2]
[361197809,1747333861184,-176.74,0.00013835,2]
[361197810,1747333861194,-450.0,0.00013835,2]
[361197811,1747333861204,-204.684776,0.00013972,2]
[361197812,1747333861214,-412.17284492,0.00013972,2]
[361197818,1747334756150,-5000.0,0.00012194,2]
[361197819,1747334756176,-300.0,0.00012694,2]
[361197820,1747334756200,-24900.0,0.00012695,2]
[361197821,1747334756224,-690.89172578,0.00013163,2]
[361197822,1747334756249,-282.631,0.00013263,2]
[361197823,1747334756275,-690.89172577,0.00013411,2]
[361197824,1747334756299,-194.92858372,0.00013473,2]
[361197825,1747334756324,-500.0,0.00013533,2]
[361197826,1747334756350,-500.0,0.00013533,2]
[361197827,1747334756374,-424.0146761,0.00013533,2]
[361197828,1747334756398,-222.671977,0.00013533,2]
[361197829,1747334756608,-500.0,0.00013533,2]
[361197830,1747334756634,-500.0,0.00013533,2]
[361197831,1747334756657,-500.0,0.00013533,2]
[361197832,1747334756680,-500.0,0.00013533,2]
[361197833,1747334756701,-500.0,0.00013533,2]
[361197834,1747334756724,-500.0,0.00013533,2]
[361197835,1747334756746,-500.0,0.00013533,2]
[361197836,1747334756767,-420.92986147,0.00013533,2]
[361197837,1747334756789,-254.29502053,0.00013533,2]
[361197838,1747334756811,-380.78827479,0.00013533,2]
[361197839,1747334756834,-500.0,0.00013533,2]
[361197840,1747334756858,-531.60646967,0.00013533,2]
[361197841,1747334756880,-531.60646967,0.00013533,2]
[361197842,1747334756902,-531.60646967,0.00013533,2]
[361197843,1747334756923,-531.60646967,0.00013533,2]
[361197844,1747334756945,-531.60646967,0.00013533,2]
[361197845,1747334756967,-500.0,0.00013533,2]
[361197846,1747334756988,-500.0,0.00013533,2]
[361197847,1747334757009,-500.0,0.00013533,2]
[361197848,1747334757030,-500.0,0.00013533,2]
[361197849,1747334757055,-500.0,0.00013533,2]
[361197850,1747334757080,-200.0,0.00013533,2]
[361197851,1747334757102,-531.60646967,0.00013533,2]
[361197852,1747334757123,-172.73726436,0.00013533,2]
[361197853,1747334757146,-500.0,0.00013533,2]
[361197854,1747334757169,-500.0,0.00013533,2]
[361197855,1747334757191,-500.0,0.00013533,2]
[361197856,1747334757214,-500.0,0.00013533,2]
[361197857,1747334757239,-500.0,0.00013533,2]
[361197858,1747334757264,-452.80905425,0.00013533,2]
[361197859,1747334757289,-500.0,0.00013533,2]
[361197860,1747334757311,-500.0,0.00013533,2]
[361197861,1747334757333,-500.0,0.00013533,2]
[361197862,1747334757356,-450.0,0.00013533,2]
[361197863,1747334757378,-500.0,0.00013533,2]
[361197864,1747334757400,-500.0,0.00013533,2]
[361197865,1747334757423,-500.0,0.00013533,2]
[361197866,1747334757445,-29098.66913009,0.00013534,2]
[361197870,1747334972088,-5000.0,0.00013264,2]
[361197871,1747334972109,-300.0,0.00013398,2]
[361197872,1747334972129,-31694.53328818,0.00013399,2]
[361197916,1747335032006,-300.0,0.00012575,2]
[361197917,1747335032016,-1126.0,0.00012575,2]
[361197918,1747335032025,-15871.4700227,0.00012576,2]
[361197919,1747335032034,-5000.0,0.00013265,2]
[361197920,1747335032043,-183.96486281,0.00013399,2]
[361197921,1747335032051,-574.82965924,0.00013431,2]
[361197922,1747335032060,-17918.85020391,0.00013531,2]
[361197923,1747335032068,-629.4572437,0.00013531,2]
[361197924,1747335032077,-500.0,0.00013531,2]
[361197925,1747335032087,-500.0,0.00013531,2]
[361197926,1747335032098,-500.0,0.00013531,2]
[361197927,1747335032108,-500.0,0.00013531,2]
[361197928,1747335032118,-500.0,0.00013531,2]
[361197929,1747335032127,-500.0,0.00013531,2]
[361197930,1747335032137,-500.0,0.00013531,2]
[361197931,1747335032146,-500.0,0.00013531,2]
[361197932,1747335032156,-500.0,0.00013531,2]
[361197933,1747335032165,-500.0,0.00013531,2]
[361197934,1747335032175,-500.0,0.00013531,2]
[361197935,1747335032184,-500.0,0.00013531,2]
[361197936,1747335032193,-500.0,0.00013531,2]
[361197937,1747335032202,-500.0,0.00013531,2]
[361197938,1747335032212,-500.0,0.00013531,2]
[361197939,1747335032222,-500.0,0.00013531,2]
[361197940,1747335032231,-500.0,0.00013531,2]
[361197941,1747335032242,-500.0,0.00013531,2]
[361197942,1747335032251,-500.0,0.00013531,2]
[361197943,1747335032260,-500.0,0.00013531,2]
[361197944,1747335032269,-500.0,0.00013531,2]
[361197945,1747335032280,-500.0,0.00013531,2]
[361197946,1747335032291,-500.0,0.00013531,2]
[361197947,1747335032300,-500.0,0.00013531,2]
[361197948,1747335032309,-500.0,0.00013531,2]
[361197949,1747335032319,-500.0,0.00013531,2]
[361197950,1747335032329,-500.0,0.00013531,2]
[361197951,1747335032339,-500.0,0.00013531,2]
[361197952,1747335032350,-500.0,0.00013531,2]
[361197953,1747335032360,-500.0,0.00013531,2]
[361197954,1747335032369,-500.0,0.00013531,2]
[361197955,1747335032379,-500.0,0.00013531,2]
[361197956,1747335032389,-500.0,0.00013531,2]
[361197957,1747335032400,-500.0,0.00013531,2]
[361197958,1747335032409,-500.0,0.00013531,2]
[361197959,1747335032419,-500.0,0.00013531,2]
[361197960,1747335032430,-500.0,0.00013531,2]
[361197961,1747335032440,-500.0,0.00013531,2]
[361197962,1747335032449,-500.0,0.00013531,2]
[361197963,1747335032459,-500.0,0.00013531,2]
[361197964,1747335032468,-500.0,0.00013531,2]
[361197965,1747335032478,-500.0,0.00013531,2]
[361197966,1747335032487,-500.0,0.00013531,2]
[361197967,1747335032497,-500.0,0.00013531,2]
[361197968,1747335032506,-577.34534506,0.00013531,2]
[361197969,1747335032516,-500.0,0.00013531,2]
[361197970,1747335032525,-500.0,0.00013531,2]
[361197971,1747335032535,-500.0,0.00013531,2]
[361197972,1747335032545,-500.0,0.00013531,2]
[361197973,1747335032555,-500.0,0.00013531,2]
[361197974,1747335032565,-500.0,0.00013531,2]
[361197975,1747335032576,-500.0,0.00013531,2]
[361197976,1747335032586,-500.0,0.00013531,2]
[361197977,1747335032595,-500.0,0.00013531,2]
[361197978,1747335032606,-500.0,0.00013531,2]
[361197979,1747335032616,-500.0,0.00013531,2]
[361197980,1747335032626,-500.0,0.00013531,2]
[361197981,1747335032637,-500.0,0.00013531,2]
[361197982,1747335032647,-500.0,0.00013531,2]
[361197983,1747335032656,-500.0,0.00013531,2]
[361197984,1747335032666,-500.0,0.00013531,2]
[361197985,1747335032676,-500.0,0.00013531,2]
[361197986,1747335032688,-500.0,0.00013531,2]
[361197987,1747335032699,-500.0,0.00013531,2]
[361197988,1747335032710,-500.0,0.00013531,2]
[361197989,1747335032722,-500.0,0.00013531,2]
[361197990,1747335032732,-500.0,0.00013531,2]
[361197991,1747335032742,-500.0,0.00013531,2]
[361197992,1747335032754,-500.0,0.00013531,2]
[361197993,1747335032765,-500.0,0.00013531,2]
[361197994,1747335032776,-500.0,0.00013531,2]
[361197995,1747335032785,-500.0,0.00013531,2]
[361197996,1747335032795,-500.0,0.00013531,2]
[361197997,1747335032805,-500.0,0.00013531,2]
[361197998,1747335032814,-500.0,0.00013531,2]
[361197999,1747335032826,-500.0,0.00013531,2]
[361198000,1747335032835,-500.0,0.00013531,2]
[361198001,1747335032845,-500.0,0.00013531,2]
[361198002,1747335032856,-500.0,0.00013531,2]
[361198003,1747335032865,-500.0,0.00013531,2]
[361198004,1747335032875,-500.0,0.00013531,2]
[361198005,1747335032883,-500.0,0.00013531,2]
[361198006,1747335032893,-500.0,0.00013531,2]
[361198007,1747335032903,-500.0,0.00013531,2]
[361198008,1747335032914,-500.0,0.00013531,2]
[361198009,1747335032923,-500.0,0.00013531,2]
[361198010,1747335032933,-500.0,0.00013531,2]
[361198011,1747335032943,-500.0,0.00013531,2]
[361198012,1747335032952,-500.0,0.00013531,2]
[361198013,1747335032962,-439.84628923,0.00013531,2]
[361198014,1747335032972,-500.0,0.00013531,2]
[361198015,1747335032982,-160.67683234,0.00013533,2]
[361198016,1747335032992,-1568505.52086991,0.00013534,2]
[361198017,1747335033001,-574.82965919,0.00013641,2]
[361198018,1747335033011,-500.0,0.00013673,2]
[361198019,1747335033020,-500.0,0.00013673,2]
[361198020,1747335033030,-500.0,0.00013673,2]
[361198021,1747335033040,-500.0,0.00013673,2]
[361198022,1747335033050,-500.0,0.00013673,2]
[361198023,1747335033061,-500.0,0.00013673,2]
[361198024,1747335033071,-503.57840558,0.00013673,2]
[361198025,1747335033081,-500.0,0.00013673,2]
[361198026,1747335033090,-500.0,0.00013673,2]
[361198027,1747335033100,-500.0,0.00013673,2]
[361198028,1747335033110,-500.0,0.00013673,2]
[361198029,1747335033119,-500.0,0.00013673,2]
[361198030,1747335033129,-151.0,0.00013698,2]
[361198031,1747335033139,-151.0,0.00013698,2]
[361198032,1747335033148,-400.0,0.00013698,2]
[361198033,1747335033159,-400.0,0.00013698,2]